bitfinex/quotes_BTCUSD_20240906
["timestamp","ask_amount","ask_price","bid_price","bid_amount"]
[1725657129731,0.000816,53263.0,53262.0,0.62581543]
[1725657129965,0.000816,53263.0,53262.0,0.83356643]
[1725657130181,0.000816,53263.0,53262.0,0.64381543]
[1725657130620,0.03022788,53263.0,53262.0,0.5738]
[1725657131038,0.03022788,53263.0,53262.0,0.5858]
[1725657131258,0.000816,53263.0,53262.0,1.169053]
[1725657131474,0.000816,53272.0,53269.0,0.5738]
[1725657131773,0.08365072,53282.0,53272.0,0.01]
[1725657131774,0.05577257,53282.0,53272.0,0.01]
[1725657131989,0.11154514,53286.0,53272.0,0.01]
[1725657131990,0.05577699,53286.0,53273.0,0.38815319]
[1725657132238,0.05577699,53287.0,53277.0,0.002]
[1725657132484,0.05577699,53289.0,53278.0,0.00375288]
[1725657132732,0.08366376,53291.0,53281.0,0.1894]
[1725657132733,0.05577699,53291.0,53281.0,0.1894]
[1725657132968,0.05577699,53293.0,53282.0,0.00375261]
[1725657133217,0.000815,53306.0,53282.0,0.00375261]
[1725657133218,0.05577699,53295.0,53282.0,0.00375261]
[1725657133463,0.000815,53306.0,53281.0,0.1894]
[1725657133464,0.05577699,53302.0,53291.0,0.3864]
[1725657133681,0.000815,53306.0,53292.0,0.00375188]
[1725657133898,0.000815,53306.0,53293.0,0.06075519]
[1725657134139,0.000815,53306.0,53294.0,0.0037517]
[1725657134775,0.000815,53306.0,53295.0,0.5738]
[1725657134986,0.000815,53306.0,53298.0,0.3844]
[1725657135196,0.000815,53306.0,53299.0,0.00375115]
[1725657135407,0.02939706,53302.0,53300.0,0.42441511]
[1725657135651,0.02939706,53302.0,53301.0,0.03575118]
[1725657135859,0.02939706,53302.0,53301.0,0.60955118]
[1725657136522,0.00918657,53302.0,53301.0,0.60955118]
[1725657136740,0.000815,53306.0,53303.0,0.03]
[1725657136961,0.000815,53306.0,53303.0,0.41815047]
[1725657137188,0.000815,53306.0,53303.0,0.42015047]
[1725657137862,0.000815,53306.0,53303.0,0.41815047]
[1725657138302,0.0293914,53305.0,53303.0,0.3844]
[1725657138521,0.0293914,53305.0,53303.0,0.45227717]
[1725657138978,0.0293914,53305.0,53303.0,0.46227717]
[1725657139427,0.0293914,53305.0,53303.0,0.48227717]
[1725657139646,0.00082,53326.0,53312.0,0.01]
[1725657139865,0.00082,53326.0,53316.0,0.01]
[1725657140083,0.00082,53326.0,53316.0,0.04228499]
[1725657140302,0.00082,53326.0,53316.0,0.04603519]
[1725657140731,0.03020629,53317.0,53316.0,0.04603519]
[1725657140949,0.03020629,53317.0,53316.0,0.43513538]
[1725657141164,0.00082,53317.0,53316.0,0.43138499]
[1725657142513,0.00082,53317.0,53316.0,0.3891]
[1725657143407,0.00082,53317.0,53307.0,0.2037]
[1725657143408,0.00082,53317.0,53309.0,0.3891]
[1725657143621,0.00082,53317.0,53303.0,0.06787717]
[1725657143836,0.00082,53317.0,53302.0,0.3885]
[1725657144089,0.00082,53317.0,53303.0,0.00375134]
[1725657144518,0.00082,53317.0,53307.0,0.01]
[1725657144731,0.00082,53317.0,53313.0,0.3885]
[1725657144945,0.00082,53317.0,53314.0,0.00375003]
[1725657145176,0.00082,53317.0,53315.0,0.040225]
[1725657145423,0.00082,53317.0,53316.0,0.00375004]
[1725657146685,0.00082,53317.0,53315.0,0.050225]
[1725657146686,0.03020349,53317.0,53315.0,0.00374989]
[1725657147184,0.03020349,53317.0,53313.0,0.3885]
[1725657148328,0.187567,53314.0,53313.0,0.3885]
[1725657148574,0.03020349,53317.0,53313.0,0.3885]
[1725657148797,0.00082,53326.0,53322.0,0.42618]
[1725657149042,0.00082,53326.0,53322.0,0.3985]
[1725657149254,0.187532,53324.0,53323.0,0.1973]
[1725657150352,0.187532,53324.0,53323.0,0.2073]
[1725657151854,0.03019945,53326.0,53325.0,0.01]
[1725657151855,0.188345,53326.0,53325.0,0.01]
[1725657152082,0.188345,53326.0,53325.0,0.40224981]
[1725657152083,0.00082,53326.0,53325.0,0.40224981]
[1725657152750,0.000816,53333.0,53332.0,0.65388]
[1725657152972,0.000816,53333.0,53332.0,0.65348]
[1725657153193,0.000816,53333.0,53332.0,0.7563307]
[1725657153419,0.000816,53333.0,53332.0,1.3188437]
[1725657153868,0.000816,53333.0,53332.0,0.7583307]
[1725657154339,0.188317,53333.0,53332.0,0.7186507]
[1725657154545,0.000816,53333.0,53332.0,0.7186507]
[1725657155170,0.000816,53333.0,53332.0,0.7206507]
[1725657155598,0.188317,53333.0,53332.0,0.7186507]
[1725657155862,0.000814,53342.0,53339.0,0.6158]
[1725657156038,0.000814,53342.0,53341.0,0.605973]
[1725657156256,0.188283,53342.0,53341.0,0.4185]
[1725657156481,0.188283,53342.0,53341.0,0.3985]
[1725657157571,0.188283,53342.0,53341.0,0.4085]
[1725657157826,0.2176475,53342.0,53341.0,0.4185]
[1725657158050,0.2176475,53342.0,53341.0,0.456238]
[1725657159407,0.0301785,53342.0,53341.0,0.486238]
[1725657159676,0.2176475,53342.0,53341.0,0.3885]
[1725657160568,0.188283,53342.0,53341.0,0.3885]
[1725657161356,0.188283,53342.0,53341.0,0.4185]
[1725657161357,0.000814,53342.0,53341.0,0.4185]
[1725657161641,0.000814,53342.0,53341.0,0.4205]
[1725657161879,0.000814,53342.0,53341.0,1.1009434]
[1725657162085,0.000814,53342.0,53341.0,0.982919]
[1725657162318,0.000814,53342.0,53341.0,1.020599]
[1725657162534,0.000814,53342.0,53341.0,1.357865]
[1725657162753,0.000814,53342.0,53341.0,0.4185]
[1725657162964,0.000814,53342.0,53341.0,0.5177759]
[1725657163184,0.000814,53342.0,53341.0,0.7052489]
[1725657163406,0.000814,53342.0,53341.0,0.7429289]
[1725657163625,0.000814,53342.0,53341.0,1.0801949]
[1725657164044,0.000814,53342.0,53341.0,1.4551409]
[1725657164268,0.000814,53342.0,53341.0,0.5177759]
[1725657164490,0.000814,53342.0,53341.0,0.7052489]
[1725657164714,0.000814,53342.0,53341.0,1.0821949]
[1725657164928,0.000814,53342.0,53341.0,2.0184869]
[1725657165146,0.000814,53342.0,53341.0,1.6435409]
[1725657165362,0.000814,53342.0,53341.0,1.6812209]
[1725657165828,0.000814,53342.0,53341.0,1.3062749]
[1725657166059,0.000814,53342.0,53341.0,0.9293289]
[1725657166283,0.000814,53342.0,53341.0,0.7041759]
[1725657166937,0.000814,53342.0,53341.0,0.5749]
[1725657166938,0.188283,53342.0,53341.0,0.5749]
[1725657167428,0.000814,53342.0,53341.0,0.5749]
[1725657167846,0.000814,53342.0,53341.0,0.61258]
[1725657168071,0.188283,53342.0,53341.0,0.5749]
[1725657168262,0.188283,53342.0,53341.0,0.41520116]
[1725657168526,0.000814,53342.0,53341.0,0.41520116]
[1725657168745,0.000814,53342.0,53341.0,0.42520116]
[1725657168957,0.000814,53342.0,53341.0,1.38456616]
[1725657169381,0.000814,53342.0,53341.0,1.60864616]
[1725657169617,0.000814,53342.0,53341.0,1.98359216]
[1725657170113,0.00082,53348.0,53347.0,1.573937]
[1725657170329,0.00082,53348.0,53347.0,1.7313307]
[1725657170756,0.00082,53348.0,53347.0,1.3564277]
[1725657170966,0.00082,53348.0,53347.0,1.7313307]
[1725657171213,0.00082,53348.0,53347.0,2.1062337]
[1725657171428,0.00082,53348.0,53347.0,1.7313307]
[1725657172077,0.00082,53348.0,53347.0,2.1062337]
[1725657172309,0.00082,53348.0,53347.0,1.7313307]
[1725657172980,0.00082,53348.0,53347.0,1.3544277]
[1725657173422,0.00082,53348.0,53347.0,1.7293307]
[1725657173647,0.00082,53348.0,53347.0,1.3544277]
[1725657174513,0.188268,53348.0,53347.0,0.3806]
[1725657174740,0.188268,53348.0,53347.0,0.3906]
[1725657174970,0.00082,53348.0,53347.0,0.972954]
[1725657175185,0.00082,53348.0,53347.0,1.8577472]
[1725657175654,0.00082,53348.0,53347.0,1.8954272]
[1725657175904,0.00082,53348.0,53347.0,1.5205242]
[1725657176136,0.10982233,53403.0,53355.0,0.032]
[1725657176137,0.48574253,53391.0,53355.0,0.032]
[1725657176352,0.48574253,53391.0,53357.0,0.1864]
[1725657176353,0.187406,53360.0,53357.0,0.1864]
[1725657176577,0.187407,53360.0,53358.0,0.01]
[1725657176821,0.18736,53373.0,53372.0,0.002]
[1725657177572,0.18736,53373.0,53359.0,0.01]
[1725657177573,0.187367,53371.0,53370.0,0.002]
[1725657178018,0.21672057,53371.0,53370.0,0.002]
[1725657178496,0.21672057,53371.0,53360.0,0.06601969]
[1725657178497,0.187371,53370.0,53369.0,0.002]
[1725657178953,0.187371,53370.0,53366.0,0.002]
[1725657178954,0.023,53370.0,53366.0,0.002]
[1725657179171,0.187381,53367.0,53366.0,0.002]
[1725657179419,0.187385,53366.0,53365.0,0.002]
[1725657181188,0.187395,53363.0,53362.0,0.002]
[1725657182121,0.187395,53363.0,53362.0,0.3781]
[1725657182339,0.187395,53363.0,53362.0,0.41891]
[1725657182805,0.1,53378.0,53363.0,0.1943]
[1725657183020,0.12093309,53397.0,53364.0,0.01374681]
[1725657183021,0.187388,53365.0,53364.0,0.01374681]
[1725657183248,0.187388,53365.0,53363.0,0.1843]
[1725657183249,0.023,53396.0,53365.0,0.01]
[1725657183465,0.187367,53371.0,53370.0,0.01]
[1725657183676,0.187367,53371.0,53370.0,0.04768]
[1725657183892,0.187367,53371.0,53370.0,0.03768]
[1725657184108,0.187367,53371.0,53370.0,0.04768]
[1725657184328,0.187367,53371.0,53370.0,0.090058]
[1725657184547,0.187367,53371.0,53370.0,0.042378]
[1725657184780,0.023,53396.0,53366.0,0.03768]
[1725657184781,0.187381,53367.0,53366.0,0.03768]
[1725657185044,0.01,53393.0,53362.0,0.003626]
[1725657185045,0.187395,53363.0,53362.0,0.003626]
[1725657185482,0.187395,53363.0,53362.0,0.001626]
[1725657186135,0.1,53375.0,53362.0,0.001626]
[1725657186406,0.000813,53391.0,53376.0,0.002]
[1725657186629,0.187346,53377.0,53376.0,0.002]
[1725657186849,0.287346,53377.0,53376.0,0.002]
[1725657187504,0.287346,53377.0,53362.0,0.001626]
[1725657187505,0.187395,53363.0,53362.0,0.001626]
[1725657188165,0.287395,53363.0,53362.0,0.001626]
[1725657188386,0.187451,53347.0,53346.0,0.55430836]
[1725657188599,0.187462,53344.0,53343.0,0.00222567]
[1725657189711,0.23983284,53344.0,53343.0,0.00222567]
[1725657189934,0.21683284,53344.0,53343.0,0.00222567]
[1725657190818,0.187462,53344.0,53343.0,0.00222567]
[1725657191032,0.210462,53344.0,53343.0,0.00022567]
[1725657191257,0.311462,53344.0,53343.0,0.00822567]
[1725657191504,0.3408565,53344.0,53343.0,6.7e-07]
[1725657191747,0.3408565,53344.0,53333.0,0.001628]
[1725657191748,0.187497,53334.0,53333.0,0.001628]
[1725657192154,0.310497,53334.0,53333.0,0.001628]
[1725657194369,0.288497,53334.0,53333.0,0.001628]
[1725657194813,0.31687094,53334.0,53333.0,0.001628]
[1725657195044,0.21687094,53334.0,53333.0,0.405428]
[1725657195264,0.59286594,53334.0,53333.0,0.405428]
[1725657195482,0.96786094,53334.0,53333.0,0.44634577]
[1725657195908,0.21787094,53334.0,53333.0,0.44634577]
[1725657196883,0.21687094,53334.0,53333.0,0.44634577]
[1725657197093,0.21687094,53334.0,53333.0,0.003628]
[1725657197312,0.21787094,53334.0,53333.0,0.003628]
[1725657197787,0.21687094,53334.0,53333.0,0.003628]
[1725657198015,0.21687094,53334.0,53325.0,0.001628]
[1725657198016,0.187525,53326.0,53325.0,0.001628]
[1725657198225,0.187525,53326.0,53325.0,1e-06]
[1725657198436,0.287525,53326.0,53325.0,1e-06]
[1725657198660,0.310525,53326.0,53325.0,1e-06]
[1725657198880,0.53590317,53326.0,53325.0,1e-06]
[1725657199150,0.36931996,53326.0,53325.0,1e-06]
[1725657199353,0.36931996,53326.0,53298.0,0.55630836]
[1725657199354,0.187585,53309.0,53308.0,1e-06]
[1725657199560,0.187585,53309.0,53298.0,0.55430836]
[1725657199561,0.18762,53299.0,53298.0,0.55430836]
[1725657199992,0.187631,53296.0,53295.0,0.002]
[1725657200227,0.187641,53293.0,53292.0,0.002]
[1725657200495,0.187641,53293.0,53292.0,0.4097]
[1725657200735,0.187641,53293.0,53292.0,0.640032]
[1725657202501,0.02,53322.0,53301.0,0.01]
[1725657202704,0.18761,53302.0,53301.0,0.01]
[1725657202913,0.21061,53302.0,53301.0,0.01]
[1725657203130,0.18761,53302.0,53301.0,0.01]
[1725657203332,0.18761,53302.0,53301.0,0.012]
[1725657204479,0.18761,53302.0,53291.0,0.01]
[1725657204480,0.02938988,53302.0,53299.0,0.01]
[1725657204690,0.1,53301.0,53299.0,0.01]
[1725657204899,0.023,53300.0,53299.0,0.01]
[1725657205578,0.023,53300.0,53299.0,0.012]
[1725657205788,0.023,53300.0,53299.0,0.01]
[1725657206631,0.023,53300.0,53287.0,0.01]
[1725657206866,0.023,53300.0,53288.0,0.01]
[1725657207086,0.023,53300.0,53286.0,0.01]
[1725657207290,0.1,53322.0,53279.0,0.00162]
[1725657207291,0.01,53298.0,53279.0,0.00162]
[1725657207496,5.05,53297.0,53279.0,0.00162]
[1725657207713,3.727,53296.0,53279.0,0.00162]
[1725657207942,0.023,53296.0,53281.0,0.01]
[1725657208178,0.1,53295.0,53281.0,0.01]
[1725657208410,0.023,53294.0,53284.0,0.002]
[1725657208612,0.023,53294.0,53292.0,0.01]
[1725657208825,0.02939373,53295.0,53293.0,0.01]
[1725657209038,0.02939373,53295.0,53294.0,0.01]
[1725657209289,0.0291683,53295.0,53294.0,0.01]
[1725657210177,0.0291683,53295.0,53294.0,0.3884]
[1725657210399,0.0291683,53295.0,53294.0,0.42724]
[1725657210826,0.02,53323.0,53294.0,0.42724]
[1725657210827,0.01,53323.0,53299.0,0.002]
[1725657211044,0.55430836,53314.0,53299.0,0.01]
[1725657211260,0.01,53317.0,53298.0,0.01]
[1725657211469,0.01,53310.0,53294.0,0.01]
[1725657211682,0.01,53311.0,53299.0,0.01]
[1725657211895,0.01,53310.0,53299.0,0.01]
[1725657212364,0.023,53309.0,53299.0,0.01]
[1725657212576,0.023,53311.0,53299.0,0.01]
[1725657212794,0.023,53311.0,53289.0,0.37802]
[1725657212795,0.439,53310.0,53291.0,0.01]
[1725657212998,0.023,53311.0,53289.0,0.00162]
[1725657212999,0.01,53305.0,53289.0,0.00162]
[1725657213220,4.447,53304.0,53289.0,0.00162]
[1725657213431,0.123,53303.0,53289.0,0.00162]
[1725657213642,4.223,53302.0,53289.0,0.00162]
[1725657213850,2.082,53301.0,53289.0,0.00162]
[1725657214064,0.023,53301.0,53289.0,0.00162]
[1725657214281,0.023,53302.0,53289.0,0.00162]
[1725657215382,0.023,53302.0,53295.0,0.01]
[1725657216933,0.1,53313.0,53295.0,0.01]
[1725657217137,0.01965631,53318.0,53295.0,0.01]
[1725657217138,0.1,53315.0,53297.0,0.01]
[1725657217341,0.01965631,53318.0,53297.0,0.01]
[1725657217557,0.187624,53298.0,53297.0,0.01]
[1725657217769,0.187624,53298.0,53297.0,0.033554]
[1725657217948,0.187624,53298.0,53297.0,0.01]
[1725657218095,0.187624,53298.0,53297.0,0.012]
[1725657218314,0.187631,53296.0,53295.0,0.01]
[1725657218522,0.01,53316.0,53294.0,0.01]
[1725657218726,0.187638,53294.0,53293.0,0.01]
[1725657218932,0.01,53316.0,53292.0,0.3884]
[1725657218933,0.187641,53293.0,53292.0,0.3884]
[1725657219216,0.187641,53293.0,53292.0,0.3864]
[1725657220187,0.187641,53293.0,53292.0,0.3884]
[1725657221521,0.187641,53293.0,53292.0,0.42541999]
[1725657221730,0.1873795,53293.0,53292.0,0.42704999]
[1725657222161,0.1873795,53293.0,53292.0,0.00163]
[1725657222162,0.2103795,53293.0,53292.0,0.00163]
[1725657222381,0.18768,53282.0,53281.0,0.36684598]
[1725657222599,0.18768,53282.0,53279.0,0.00162]
[1725657222600,0.187687,53280.0,53279.0,0.00162]
[1725657222817,0.287687,53280.0,53279.0,0.00162]
[1725657223033,0.310687,53280.0,53279.0,0.00162]
[1725657223923,0.187687,53280.0,53279.0,0.01162]
[1725657225561,0.000815,53295.0,53294.0,0.3864]
[1725657225562,0.188449,53295.0,53294.0,0.3864]
[1725657226259,0.03094059,53322.0,53299.0,0.01]
[1725657226473,0.03094059,53322.0,53297.0,0.1846]
[1725657226474,0.55430836,53321.0,53308.0,0.01]
[1725657226677,0.000814,53334.0,53309.0,0.3764]
[1725657226893,0.000814,53334.0,53310.0,0.002]
[1725657226894,0.03094,53329.0,53310.0,0.002]
[1725657227134,0.369,53328.0,53310.0,0.002]
[1725657227344,0.105,53327.0,53309.0,0.3764]
[1725657227552,0.01965186,53330.0,53309.0,0.3764]
[1725657227553,0.189,53329.0,53310.0,0.002]
[1725657227799,0.189,53329.0,53311.0,0.01]
[1725657228214,0.259,53329.0,53311.0,0.01]
[1725657228452,0.259,53329.0,53309.0,0.3784]
[1725657228453,0.000814,53334.0,53317.0,0.01]
[1725657228663,0.108,53333.0,53317.0,0.01]
[1725657229313,0.101,53333.0,53317.0,0.01]
[1725657229978,0.101,53333.0,53316.0,0.002]
[1725657229979,0.101,53333.0,53318.0,0.01]
[1725657230719,0.000814,53334.0,53318.0,0.01]
[1725657230720,0.000814,53334.0,53325.0,0.01]
[1725657234684,0.000814,53334.0,53326.0,0.01]
[1725657234903,0.000814,53334.0,53330.0,0.1846]
[1725657235541,0.000814,53334.0,53330.0,0.1816]
[1725657235745,0.000814,53334.0,53329.0,0.03]
[1725657236424,0.000814,53334.0,53329.0,0.01]
[1725657236839,0.000814,53334.0,53329.0,0.03437048]
[1725657237058,0.000814,53334.0,53329.0,0.01]
[1725657237267,0.000814,53334.0,53323.0,0.002]
[1725657237268,0.000814,53334.0,53323.0,0.01]
[1725657237269,0.05144352,53334.0,53323.0,0.01]
[1725657237525,0.05144352,53334.0,53322.0,0.3764]
[1725657237526,0.023,53333.0,53326.0,0.01]
[1725657239528,0.000814,53334.0,53326.0,0.01]
[1725657240597,0.000814,53334.0,53322.0,0.3764]
[1725657240856,0.000814,53334.0,53324.0,0.01]
[1725657242327,0.000814,53334.0,53326.0,0.01]
[1725657242641,0.000814,53334.0,53321.0,0.1846]
[1725657242642,0.000814,53334.0,53333.0,0.4028]
[1725657242852,0.000814,53334.0,53333.0,0.6211]
[1725657243088,0.000814,53334.0,53328.0,0.002]
[1725657243089,0.00081,53349.0,53344.0,0.01]
[1725657243346,0.00081,53349.0,53328.0,0.03968]
[1725657243347,0.00081,53349.0,53348.0,0.002]
[1725657243634,0.00081,53349.0,53348.0,0.012]
[1725657243859,0.00081,53349.0,53348.0,0.50831]
[1725657244320,0.00081,53349.0,53348.0,0.446]
[1725657248246,0.05536634,53373.0,53362.0,0.01]
[1725657248495,0.55430836,53372.0,53362.0,0.03]
[1725657248736,0.04871443,53372.0,53362.0,0.03]
[1725657248947,0.13055334,53378.0,53362.0,0.03]
[1725657249162,0.05536634,53378.0,53363.0,0.002]
[1725657249380,0.08304952,53380.0,53363.0,0.002]
[1725657249381,0.05536634,53380.0,53363.0,0.002]
[1725657249595,0.05536634,53380.0,53362.0,0.0746]
[1725657249596,0.05520781,53379.0,53362.0,0.03]
[1725657249818,0.05520781,53376.0,53362.0,0.03]
[1725657250266,0.1,53377.0,53357.0,0.414]
[1725657250267,0.0276,53375.0,53357.0,0.414]
[1725657250506,0.023,53374.0,53358.0,0.55430836]
[1725657250716,0.023,53374.0,53357.0,0.414]
[1725657250717,0.07820781,53374.0,53357.0,0.414]
[1725657250931,0.023,53374.0,53357.0,0.414]
[1725657251149,0.023,53374.0,53357.0,0.424]
[1725657251373,0.023,53374.0,53358.0,0.01]
[1725657251609,0.023,53374.0,53360.0,0.01]
[1725657251832,0.023,53374.0,53362.0,0.01]
[1725657252054,0.15799372,53382.0,53357.0,0.414]
[1725657252055,0.1046,53381.0,53366.0,0.002]
[1725657252273,0.0046,53381.0,53367.0,0.414]
[1725657252501,0.0046,53381.0,53367.0,0.6062]
[1725657252715,0.0046,53387.0,53367.0,0.6162]
[1725657252956,0.075175,53386.0,53373.0,0.002]
[1725657253162,5.0546,53387.0,53373.0,0.002]
[1725657253163,0.0046,53387.0,53373.0,0.002]
[1725657253376,0.0046,53387.0,53371.0,0.01]
[1725657253377,0.0046,53387.0,53377.0,0.002]
[1725657253810,0.0046,53387.0,53372.0,0.01]
[1725657253811,0.0046,53387.0,53373.0,0.002]
[1725657254280,0.0046,53387.0,53371.0,0.02]
[1725657254281,0.121,53386.0,53371.0,0.01]
[1725657254495,2.289,53386.0,53370.0,0.02]
[1725657254711,0.0046,53387.0,53371.0,0.01]
[1725657255395,0.0046,53387.0,53370.0,0.01]
[1725657255396,1.767,53386.0,53370.0,0.01]
[1725657255617,1.165,53385.0,53370.0,0.01]
[1725657255832,0.023,53384.0,53368.0,0.032]
[1725657256080,0.023,53384.0,53371.0,0.012]
[1725657256295,0.023,53384.0,53372.0,0.424]
[1725657256955,0.00081,53388.0,53375.0,0.01]
[1725657257179,0.00081,53388.0,53374.0,0.01]
[1725657257397,0.00081,53388.0,53380.0,0.002]
[1725657257398,0.000814,53386.0,53380.0,0.002]
[1725657257826,0.000814,53386.0,53375.0,0.02]
[1725657257827,0.1,53390.0,53383.0,0.002]
[1725657258052,0.32979026,53403.0,53384.0,0.414]
[1725657258271,1.903,53402.0,53384.0,0.414]
[1725657258493,0.02,53395.0,53384.0,0.414]
[1725657259167,0.023,53394.0,53384.0,0.414]
[1725657261152,0.023,53394.0,53387.0,0.002]
[1725657261804,0.023,53394.0,53384.0,0.426]
[1725657262018,0.023,53394.0,53384.0,0.416]
[1725657262659,0.023,53398.0,53384.0,0.426]
[1725657262878,0.0098157,53397.0,53384.0,0.426]
[1725657263125,0.023,53396.0,53384.0,0.426]
[1725657263580,0.32869027,53414.0,53384.0,0.426]
[1725657263835,0.023,53400.0,53385.0,0.0608]
[1725657264054,5.144,53413.0,53384.0,0.416]
[1725657264284,0.075157,53411.0,53384.0,0.416]
[1725657264524,0.075157,53411.0,53384.0,0.414]
[1725657264525,5.14363,53410.0,53384.0,0.414]
[1725657264755,5.05,53409.0,53385.0,0.55430836]
[1725657264980,3.202,53408.0,53385.0,0.55430836]
[1725657265206,1.847,53407.0,53385.0,0.55430836]
[1725657265473,1.506,53406.0,53384.0,0.414]
[1725657265714,0.187318,53385.0,53384.0,0.414]
[1725657265926,0.210318,53385.0,53384.0,0.414]
[1725657267402,0.210318,53385.0,53384.0,0.416]
[1725657268100,0.210318,53385.0,53384.0,0.414]
[1725657269578,0.210318,53385.0,53384.0,0.7052]
[1725657269579,0.16216955,53385.0,53384.0,0.7052]
[1725657269845,0.000813,53403.0,53392.0,0.5886]
[1725657269846,0.18729,53393.0,53392.0,0.5886]
[1725657270089,0.18729,53393.0,53392.0,0.6186]
[1725657270349,0.176053,53393.0,53392.0,0.6186]
[1725657270595,0.176053,53393.0,53392.0,0.68046]
[1725657270820,0.000813,53403.0,53399.0,0.03]
[1725657271090,0.000813,53403.0,53401.0,0.01]
[1725657271845,0.000813,53403.0,53402.0,0.002]
[1725657272099,0.000813,53403.0,53401.0,0.012]
[1725657272348,0.000813,53403.0,53401.0,0.01]
[1725657272830,0.000813,53403.0,53402.0,0.6186]
[1725657273093,0.000813,53403.0,53402.0,0.5981195]
[1725657273350,0.000813,53403.0,53402.0,0.5881195]
[1725657273620,0.000813,53403.0,53402.0,0.5981195]
[1725657274334,0.000813,53403.0,53402.0,0.6201195]
[1725657274567,0.000813,53403.0,53402.0,0.68213145]
[1725657278768,0.000124,53421.0,53419.0,0.1963]
[1725657279223,0.000124,53421.0,53419.0,0.2063]
[1725657279468,0.000124,53421.0,53420.0,0.4229]
[1725657279674,0.000124,53421.0,53420.0,0.4249]
[1725657279888,0.000124,53421.0,53420.0,0.4049]
[1725657280325,0.000124,53421.0,53420.0,0.4249]
[1725657281018,0.000124,53421.0,53417.0,0.01]
[1725657281231,0.000124,53421.0,53414.0,0.02]
[1725657281232,0.000124,53421.0,53416.0,0.01]
[1725657281673,0.000124,53421.0,53417.0,0.01]
[1725657281898,0.000124,53421.0,53410.0,0.3929]
[1725657282165,0.000124,53421.0,53410.0,0.4029]
[1725657283492,0.000124,53421.0,53410.0,0.3929]
[1725657283712,0.000124,53421.0,53406.0,0.4029]
[1725657283941,0.000124,53421.0,53406.0,0.3929]
[1725657284692,0.000124,53421.0,53410.0,0.01]
[1725657284959,0.000124,53421.0,53412.0,0.01]
[1725657285242,0.000124,53421.0,53410.0,0.06129]
[1725657285243,0.000124,53421.0,53419.0,0.01]
[1725657285501,0.000124,53421.0,53416.0,0.02]
[1725657285502,0.000124,53421.0,53420.0,0.4099]
[1725657286685,0.000124,53421.0,53420.0,0.4199]
[1725657287653,0.000124,53421.0,53416.0,0.01]
[1725657288112,0.000124,53421.0,53411.0,0.4099]
[1725657288113,0.162324,53421.0,53411.0,0.4099]
[1725657288643,0.023,53420.0,53411.0,0.4099]
[1725657289136,0.023,53420.0,53408.0,0.01]
[1725657289638,0.023,53420.0,53407.0,0.01]
[1725657289885,0.023,53420.0,53408.0,0.01]
[1725657290128,0.023,53420.0,53409.0,0.01]
[1725657290362,0.023,53420.0,53409.0,0.02]
[1725657290910,0.023,53420.0,53409.0,0.03]
[1725657291141,0.023,53420.0,53403.0,0.4099]
[1725657291371,5.1474,53419.0,53398.0,0.4199]
[1725657291612,0.0523609,53418.0,53401.0,0.55430836]
[1725657291848,0.0523609,53418.0,53398.0,0.4099]
[1725657291849,0.1622,53417.0,53398.0,0.4099]
[1725657292086,0.08463173,53416.0,53398.0,0.4099]
[1725657292338,2.7942,53417.0,53392.0,0.421526]
[1725657292339,0.0552672,53414.0,53392.0,0.421526]
[1725657292529,0.0552672,53414.0,53393.0,0.01]
[1725657292530,0.2596,53412.0,53393.0,0.01]
[1725657292809,0.02936453,53411.0,53392.0,0.411526]
[1725657293057,0.05236453,53411.0,53392.0,0.411526]
[1725657293294,2.66863173,53410.0,53392.0,0.001626]
[1725657293552,0.0552672,53407.0,53392.0,0.001626]
[1725657293814,0.0829008,53408.0,53392.0,0.001626]
[1725657293815,0.02524875,53408.0,53392.0,0.001626]
[1725657294044,0.023,53406.0,53403.0,0.001626]
[1725657294512,0.023,53408.0,53403.0,0.001626]
[1725657294761,0.023,53410.0,53403.0,0.001626]
[1725657295274,0.07829216,53410.0,53403.0,0.001626]
[1725657295508,0.11058432,53414.0,53403.0,0.001626]
[1725657295509,0.05532178,53414.0,53403.0,0.001626]
[1725657295745,0.01,53412.0,53403.0,0.001626]
[1725657297653,0.08298267,53423.0,53403.0,0.001626]
[1725657297654,0.05532178,53423.0,53403.0,0.001626]
[1725657297881,0.16596534,53443.0,53403.0,0.001626]
[1725657297882,2.173131,53422.0,53403.0,0.001626]
[1725657298096,2.1,53421.0,53403.0,0.001626]
[1725657298841,2.078,53421.0,53403.0,0.001626]
[1725657299086,0.075131,53422.0,53403.0,0.001626]
[1725657299306,2.083,53421.0,53403.0,0.001626]
[1725657299549,0.07841711,53421.0,53403.0,0.001626]
[1725657300043,0.023,53421.0,53403.0,0.001626]
[1725657300281,0.05541711,53420.0,53403.0,0.001626]
[1725657300538,0.11083422,53426.0,53414.0,0.185]
[1725657300539,0.05541711,53424.0,53414.0,0.185]
[1725657300757,0.32979026,53435.0,53404.0,0.55430836]
[1725657300758,0.05541711,53428.0,53407.0,0.3799]
[1725657301042,0.075129,53423.0,53407.0,0.3799]
[1725657301357,0.075129,53423.0,53398.0,0.022]
[1725657301358,0.075129,53423.0,53403.0,0.00139416]
[1725657301359,0.05541711,53421.0,53403.0,0.00139416]
[1725657301536,4.76113072,53422.0,53403.0,0.00139416]